bitfinex/quotes_ETHUSD_20250703
["timestamp","ask_amount","ask_price","bid_price","bid_amount"]
[1751575519011,0.9896,2600.6,2600.5,0.02]
[1751575519323,0.9896,2600.6,2600.5,0.0399]
[1751575519519,1.47307847,2600.6,2600.5,0.0399]
[1751575519727,5.31834494,2600.6,2600.5,0.0399]
[1751575519930,5.31834494,2600.6,2600.4,0.02]
[1751575520327,1.47307847,2600.6,2600.4,0.02]
[1751575523226,5.31842168,2600.6,2600.4,0.02]
[1751575523422,5.59157337,2600.5,2600.4,0.02]
[1751575523724,5.59157337,2600.5,2600.0,0.02]
[1751575523725,3.84573662,2600.3,2600.0,0.02]
[1751575523924,4.03773662,2600.3,2600.0,0.02]
[1751575525055,0.192,2600.3,2600.0,0.02]
[1751575527232,4.03774435,2600.3,2600.0,0.02]
[1751575527443,4.63419874,2600.2,2600.0,0.02]
[1751575527646,3.84600592,2600.1,2600.0,0.02]
[1751575527820,3.84620203,2600.0,2599.6,0.192]
[1751575528981,4.03824784,2600.0,2599.5,4.03882962]
[1751575529841,3.84630738,2599.9,2599.5,4.03882962]
[1751575530155,0.87064133,2599.9,2599.5,4.03880367]
[1751575531964,4.71695818,2599.9,2599.5,4.03880367]
[1751575532163,4.71701845,2599.9,2599.5,0.192]
[1751575532380,4.71701845,2599.9,2599.5,4.03889325]
[1751575532679,4.71696884,2599.9,2599.5,0.192]
[1751575534070,4.71696884,2599.9,2599.5,4.03887459]
[1751575534442,0.87064133,2599.9,2599.5,4.03887459]
[1751575534641,4.71695047,2599.9,2599.5,4.03887459]
[1751575534842,4.71695047,2599.9,2599.5,0.212]
[1751575535057,4.71695047,2599.9,2599.5,4.05887707]
[1751575535642,4.71695047,2599.9,2599.5,0.212]
[1751575535846,4.71695047,2599.9,2599.5,4.05883538]
[1751575536593,0.87064133,2599.9,2599.5,4.05883538]
[1751575536892,4.71694799,2599.9,2599.5,4.05883538]
[1751575537590,4.71694799,2599.9,2599.5,0.212]
[1751575538294,0.87551234,2599.8,2599.5,0.212]
[1751575538666,0.7982,2599.7,2599.5,0.02]
[1751575538873,0.9902,2599.7,2599.5,0.02]
[1751575540496,0.192,2599.7,2599.6,3.84674565]
[1751575540862,0.192,2600.1,2599.9,3.84630178]
[1751575541064,0.95695393,2600.1,2600.0,3.84615384]
[1751575541273,0.192,2600.3,2600.0,3.84615384]
[1751575542068,1.71455903,2600.5,2600.2,3.84585801]
[1751575542274,8.90035903,2600.5,2600.2,3.84585801]
[1751575542690,1e-08,2600.9,2600.3,9.07226973]
[1751575542691,0.82230001,2600.9,2600.3,9.07226973]
[1751575542874,0.192,2600.8,2600.5,3.84534744]
[1751575543196,0.192,2600.8,2600.6,3.84526293]
[1751575545599,0.192,2600.8,2600.5,3.84541264]
[1751575545969,0.192,2600.8,2600.7,3.84511862]
[1751575546500,1e-08,2600.9,2600.7,3.84511862]
[1751575546673,0.01,2600.8,2600.7,3.84511862]
[1751575551426,0.01,2600.8,2600.7,4.81451862]
[1751575552089,0.01,2600.8,2600.6,3.84517971]
[1751575552420,0.01,2600.8,2600.7,3.84511862]
[1751575553102,0.01,2600.8,2600.5,4.0373463]
[1751575553103,0.01,2600.8,2600.5,0.192]
[1751575553718,0.01,2600.8,2600.6,3.84526167]
[1751575554833,0.01,2600.8,2600.5,4.0373251]
[1751575555631,0.01,2600.8,2600.1,12.7044]
[1751575555803,4.04708107,2600.8,2600.4,13.84555239]
[1751575556199,3.8451223,2600.7,2600.3,0.192]
[1751575556608,3.8451223,2600.7,2600.3,4.03769697]
[1751575559722,4.91641562,2600.8,2600.4,3.84556055]
[1751575560230,4.91641562,2600.8,2600.3,4.03762671]
[1751575560529,3.845131,2600.7,2600.3,4.03762671]
[1751575560736,3.845131,2600.7,2600.3,0.192]
[1751575560935,3.8452886,2600.6,2600.3,0.192]
[1751575561139,0.7621,2600.6,2600.3,0.192]
[1751575561502,3.84551712,2600.5,2600.3,0.192]
[1751575562113,0.192,2600.5,2600.1,4.0379338]
[1751575563415,0.192,2600.5,2600.2,3.84584202]
[1751575564146,0.192,2600.5,2600.1,4.03793455]
[1751575564510,4.03744238,2600.5,2600.1,4.03793455]
[1751575564751,5.76824147,2600.5,2600.1,4.03793455]
[1751575564950,5.768224,2600.5,2600.1,4.03793455]
[1751575565446,1.92279909,2600.5,2600.1,0.192]
[1751575565805,3.84563051,2600.4,2600.1,0.192]
[1751575567055,5.76830143,2600.5,2600.1,0.192]
[1751575567264,1.03757329,2600.4,2600.1,0.192]
[1751575569056,4.88322283,2600.4,2600.1,0.192]
[1751575571455,1.03757329,2600.4,2600.1,4.03798752]
[1751575571629,5.76828333,2600.5,2600.1,4.03798752]
[1751575572020,5.76828333,2600.5,2600.1,0.192]
[1751575572333,3.84557755,2600.4,2600.1,0.192]
[1751575573167,5.76822369,2600.5,2600.1,0.192]
[1751575573358,3.84570207,2600.4,2600.1,0.192]
[1751575573669,0.7812,2600.2,2600.1,0.192]
[1751575574249,3.84585801,2600.2,2600.1,0.192]
[1751575574543,3.84582113,2600.3,2600.1,0.192]
[1751575574862,4.62684364,2600.4,2600.1,0.192]
[1751575576258,0.7812,2600.4,2600.1,4.03798846]
[1751575576439,0.7812,2600.4,2600.1,0.192]
[1751575576642,0.192,2600.5,2600.2,3.84579119]
[1751575577675,0.192,2600.5,2600.3,3.84566044]
[1751575578261,0.192,2600.5,2600.4,3.84556222]
[1751575579029,0.01,2600.8,2600.5,3.84535271]
[1751575579235,1.2229255,2600.8,2600.4,3.88527705]
[1751575579760,1.2229255,2600.8,2600.5,3.84530826]
[1751575580465,1.2229255,2600.8,2600.6,0.0398]
[1751575581460,0.202,2600.8,2600.6,0.0398]
[1751575583463,4.04697321,2600.8,2600.6,0.0398]
[1751575584239,4.62111862,2600.7,2600.6,0.0398]
[1751575584433,4.03732145,2600.6,2600.3,4.76999999]
[1751575585166,0.192,2600.6,2600.3,8.61568275]
[1751575585350,0.192,2600.6,2600.3,4.76999999]
[1751575585666,1.05881781,2600.6,2600.3,8.61570578]
[1751575586445,0.192,2600.6,2600.4,3.84554535]
[1751575587562,0.192,2600.6,2600.3,8.6156588]
[1751575588058,4.03733551,2600.6,2600.3,4.76999999]
[1751575589069,4.03733551,2600.6,2600.2,12.34091616]
[1751575589070,4.03733551,2600.6,2600.2,4.03784643]
[1751575589272,0.40373355,2600.5,2600.2,4.03784643]
[1751575589469,4.24914824,2600.5,2600.2,0.192]
[1751575589945,3.84556503,2600.4,2600.1,4.76999999]
[1751575590147,0.192,2600.3,2600.1,4.76999999]
[1751575590473,3.84600592,2600.1,2600.0,0.02]
[1751575590769,4.30846651,2600.1,2600.0,0.02]
[1751575591470,0.46246059,2600.1,2599.8,3.84633759]
[1751575591647,7.784,2600.5,2600.1,3.84600592]
[1751575591854,0.192,2600.3,2600.0,12.94695191]
[1751575592444,0.7618,2600.3,2599.7,14.64431111]
[1751575592646,0.192,2600.2,2600.0,0.02]
[1751575592846,3.84609225,2600.1,2600.0,0.02]
[1751575594548,3.84642749,2599.9,2599.6,0.192]
[1751575594741,3.84646297,2599.8,2599.5,0.02]
[1751575595077,4.03838176,2599.9,2599.5,3.86688994]
[1751575595449,0.192,2599.9,2599.5,3.86688994]
[1751575596681,4.03831186,2599.9,2599.5,3.86688994]
[1751575597542,0.192,2599.9,2599.5,3.86688994]
[1751575597749,0.192,2599.9,2599.6,3.84671531]
[1751575598050,0.91901725,2599.9,2599.5,3.86681581]
[1751575600574,0.91901725,2599.9,2599.5,0.02]
[1751575600575,4.76532327,2599.9,2599.5,0.02]
[1751575600779,3.84656272,2599.8,2599.5,0.02]
[1751575602673,4.61606639,2599.7,2599.5,0.02]
[1751575603485,0.7694,2599.7,2599.5,0.02]
[1751575603993,3.84653719,2599.8,2599.5,0.02]
[1751575604178,0.78449184,2599.7,2599.5,0.02]
[1751575604684,3.84674565,2599.6,2599.5,0.02]
[1751575607187,3.84674565,2599.6,2599.4,0.02]
[1751575607188,3.84689363,2599.5,2599.4,0.02]
[1751575613370,4.6162333,2599.6,2599.4,0.02]
[1751575613565,1.70293831,2599.5,2599.4,0.02]
[1751575614505,5.54983194,2599.5,2599.4,0.02]
[1751575618889,5.55983194,2599.5,2599.4,0.02]
[1751575620502,1.71293831,2599.5,2599.4,0.02]
[1751575621500,7.791,2599.5,2599.4,0.02]
[1751575626112,11.63789363,2599.5,2599.4,0.02]
[1751575626318,7.791,2599.5,2599.4,0.02]
[1751575627099,11.63789363,2599.5,2599.4,0.02]
[1751575628206,7.791,2599.5,2599.4,0.02]
[1751575628411,11.63789363,2599.5,2599.4,0.02]
[1751575628601,12.8993182,2599.5,2599.4,0.02]
[1751575628990,9.83032457,2599.5,2599.4,0.02]
[1751575630026,9.05242457,2599.5,2599.4,0.02]
[1751575630222,0.01,2599.5,2599.4,3.86704162]
[1751575630723,0.01,2599.5,2599.4,0.02]
[1751575631124,0.01,2599.5,2599.4,3.86704162]
[1751575632451,0.01,2599.5,2599.4,0.02]
[1751575633393,0.01,2599.5,2599.4,3.86704162]
[1751575633822,0.01,2599.5,2599.4,0.02]
[1751575635129,0.88569,2599.5,2599.4,0.02]
[1751575637220,0.01,2599.5,2599.4,0.02]
[1751575637499,0.01,2599.5,2599.4,3.86704162]
[1751575638003,7.791,2599.5,2599.4,12.17011135]
[1751575638317,0.01,2599.5,2599.4,12.17011135]
[1751575638827,0.01,2599.5,2599.4,12.36211135]
[1751575639422,0.01,2599.5,2599.4,17.96271134]
[1751575653443,0.01,2599.5,2599.4,9.65964161]
[1751575658347,0.01,2599.5,2599.4,17.43964161]
[1751575659817,0.01,2599.5,2599.4,27.43964161]
[1751575660256,0.01,2599.5,2599.4,27.47954161]
[1751575660823,0.01,2599.5,2599.4,27.43964161]
[1751575666771,4.83880096,2600.3,2599.9,3.84624894]
[1751575667065,0.6732801,2600.2,2599.9,3.84624894]
[1751575668044,0.6732801,2600.2,2600.0,3.84614339]
[1751575668249,0.99307353,2600.3,2600.0,3.84614339]
[1751575668445,0.99307353,2600.3,2600.1,3.84596813]
[1751575669166,3.85534407,2600.6,2600.2,3.84573978]
[1751575669474,0.192,2600.5,2600.2,3.88563978]
[1751575669841,0.192,2600.5,2600.2,0.0399]
[1751575670043,0.192,2600.5,2600.2,3.88568094]
[1751575671466,0.192,2600.5,2600.3,3.84566728]
[1751575671670,1.0334,2600.6,2600.3,3.84564583]
[1751575671877,1.0334,2600.6,2600.4,3.88537616]
[1751575672537,1.0334,2600.6,2600.4,0.0399]
[1751575673177,1.0334,2600.6,2600.4,3.88543896]
[1751575673381,0.202,2600.6,2600.5,3.84541434]
[1751575674543,0.202,2600.6,2600.4,3.84547707]
[1751575675271,0.202,2600.6,2600.5,3.84541434]
[1751575675569,0.202,2600.6,2600.5,12.14848407]
[1751575675570,0.01,2600.6,2600.5,12.14848407]
[1751575675770,0.01,2600.6,2600.5,12.34048407]
[1751575675984,0.01,2600.6,2600.5,12.38038407]
[1751575676458,0.01,2600.6,2600.5,12.34048407]
[1751575676641,0.01,2600.6,2600.5,4.03741434]
[1751575680876,0.01,2600.6,2600.5,8.80741433]
[1751575685880,0.01,2600.6,2600.5,4.96199999]
[1751575686685,0.01,2600.6,2600.5,0.192]
[1751575686887,0.01,2600.6,2600.4,3.84548005]
[1751575687585,0.01,2600.6,2600.3,16.58464476]
[1751575687791,0.01,2600.6,2600.3,4.96199999]
[1751575688006,0.7609,2600.5,2600.3,8.80767101]
[1751575688594,0.7609,2600.5,2600.3,4.96199999]
[1751575688890,0.7609,2600.5,2600.3,4.98199999]
[1751575690185,4.60632851,2600.5,2600.3,4.78999999]
[1751575690383,5.471689,2600.5,2600.4,0.0179]
[1751575691293,5.47167483,2600.5,2600.4,0.0179]
[1751575691757,1.62626049,2600.5,2600.4,0.0179]
[1751575691959,5.47167483,2600.5,2600.4,0.0179]
[1751575693170,1.62626049,2600.5,2600.4,0.0179]
[1751575693369,0.7609,2600.5,2600.4,0.0179]
[1751575693890,0.202,2600.6,2600.4,0.0179]
[1751575697099,0.202,2600.6,2600.4,3.86334186]
[1751575697281,0.202,2600.6,2600.4,3.8633582]
[1751575698296,0.202,2600.6,2600.5,3.84541434]
[1751575698703,0.01,2600.6,2600.5,3.84541434]
[1751575698901,0.01,2600.6,2600.5,3.86331434]
[1751575700403,0.01,2600.6,2600.5,3.84541434]
[1751575701988,0.01,2600.6,2600.5,4.07586848]
[1751575702296,0.01,2600.6,2600.5,14.13356848]
[1751575702507,0.01,2600.6,2600.5,14.09511434]
[1751575703292,0.01,2600.6,2600.5,21.87111434]
[1751575704008,0.01,2600.6,2600.5,22.65331434]
[1751575704217,0.01,2600.6,2600.5,24.54631434]
[1751575705629,0.01,2600.8,2600.7,14.62731862]
[1751575705782,0.01,2600.8,2600.7,30.70638835]
[1751575705979,0.01,2600.8,2600.7,31.09094573]
[1751575706316,0.01,2600.8,2600.7,31.14864573]
[1751575706908,0.01,2600.8,2600.7,30.95608835]
[1751575707112,0.01,2600.8,2600.7,30.89838835]
[1751575707701,0.01,2601.1,2600.9,13.84479747]
[1751575707894,0.01,2601.1,2601.0,30.9337916]
[1751575708091,0.01,2601.1,2601.0,30.89534485]
[1751575710608,0.01,2601.1,2601.0,23.12034485]
[1751575710807,0.01,2601.1,2601.0,32.78734485]
[1751575712415,0.01,2601.1,2601.0,23.12034485]
[1751575712785,0.01,2601.1,2601.0,14.03667512]
[1751575712986,0.01,2601.1,2601.0,21.81067512]
[1751575716019,0.01,2601.1,2601.0,30.11374485]
[1751575717917,0.01,2601.1,2601.0,18.49506973]
[1751575718122,0.01,2601.1,2601.0,0.192]
[1751575718423,0.01,2601.1,2601.0,7.773]
[1751575723927,0.01,2601.1,2601.0,11.61767512]
[1751575724127,0.01,2601.1,2601.0,7.773]
[1751575726231,0.01,2601.1,2601.0,19.92074485]
[1751575728119,0.01,2601.1,2600.9,3.8647354]
[1751575728450,0.01,2601.1,2601.0,7.773]
[1751575728805,0.01,2601.1,2601.0,11.61767512]
[1751575729622,0.01,2601.1,2601.0,3.84467512]
[1751575729825,0.01,2601.1,2601.0,11.61767512]
[1751575730605,0.01,2601.1,2601.0,7.773]
[1751575731640,0.01,2601.1,2601.0,11.61767512]
[1751575733752,0.01,2601.1,2601.0,7.773]
[1751575733925,0.01,2601.1,2601.0,11.61767512]
[1751575738616,0.01,2601.1,2601.0,7.773]
[1751575739848,0.01,2601.1,2601.0,11.61767512]
[1751575740036,0.01,2601.1,2601.0,11.65797512]
[1751575741448,0.01,2601.1,2601.0,7.8123]
[1751575743321,0.01,2601.1,2601.0,0.0403]
[1751575743654,5.0971401,2601.1,2601.0,0.0403]
[1751575745626,1.25261279,2601.1,2601.0,0.0403]
[1751575745826,5.0971401,2601.1,2601.0,0.0403]
[1751575746154,1.25261279,2601.1,2601.0,0.0403]
[1751575747858,5.0971401,2601.1,2601.0,0.0403]
[1751575754057,1.25261279,2601.1,2601.0,0.0403]
[1751575754234,5.0971401,2601.1,2601.0,0.0403]
[1751575760963,0.01,2601.1,2601.0,0.0403]
[1751575761165,0.202,2601.1,2601.0,0.0403]
[1751575764372,4.04652731,2601.1,2601.0,0.0403]
[1751575764544,0.202,2601.1,2601.0,0.0403]
[1751575766491,4.81262731,2601.1,2601.0,0.0403]
[1751575766669,7.36906102,2601.1,2601.0,0.0403]
[1751575769548,8.20185054,2601.1,2601.0,0.0403]
[1751575769750,7.36906102,2601.1,2601.0,0.0403]
[1751575771253,15.14006102,2601.1,2601.0,0.0403]
[1751575771453,15.97295069,2601.1,2601.0,0.0403]
[1751575777113,3.84509971,2600.8,2600.4,0.192]
[1751575777481,0.192,2600.7,2600.4,4.03755577]
[1751575778190,0.192,2600.7,2600.5,3.84539367]
[1751575778504,0.192,2600.7,2600.5,3.84529571]
[1751575779506,0.192,2600.7,2600.4,4.03749146]
[1751575779823,0.192,2600.7,2600.4,0.192]
[1751575780104,4.03712524,2600.7,2600.4,0.192]
[1751575780500,0.192,2600.7,2600.4,0.192]
[1751575780880,3.84529084,2600.6,2600.4,0.192]
[1751575781497,4.82541063,2600.7,2600.4,0.192]
[1751575782203,0.192,2600.7,2600.4,0.192]
[1751575782403,4.03715252,2600.7,2600.4,0.192]
[1751575782632,0.192,2600.7,2600.4,0.192]
[1751575782804,0.192,2600.7,2600.4,4.03755122]
[1751575784312,0.192,2600.7,2600.4,4.05755122]
[1751575787990,0.192,2600.7,2600.4,4.05754702]
[1751575795804,0.192,2600.7,2600.4,10.68845039]
[1751575796322,0.192,2600.7,2600.4,6.84290337]
[1751575797926,0.192,2600.7,2600.4,10.68846423]
[1751575799024,0.61176897,2600.7,2600.4,0.212]
[1751575799224,0.799,2600.6,2600.4,0.02]
[1751575799424,0.192,2600.5,2600.4,0.02]
[1751575801731,0.192,2600.5,2600.4,10.49646559]
[1751575802500,0.192,2600.5,2600.4,6.65090337]
[1751575803437,0.192,2600.5,2600.4,10.49646559]
[1751575803932,0.192,2600.5,2600.4,3.86556222]
[1751575804631,0.192,2600.5,2600.4,0.02]
[1751575805431,0.192,2600.5,2600.4,3.86556222]
[1751575806430,0.192,2600.5,2600.4,0.02]
[1751575806740,0.192,2600.5,2600.4,3.86556222]
[1751575807441,0.192,2600.5,2600.4,0.02]
[1751575811847,1.0571944,2600.5,2600.4,0.02]
[1751575813641,4.90260874,2600.5,2600.4,0.02]
[1751575813949,4.90260874,2600.5,2600.4,0.03410001]
[1751575813950,5.70000874,2600.5,2600.4,0.03410001]
[1751575821262,1.8545944,2600.5,2600.4,0.03410001]
[1751575822859,5.70000874,2600.5,2600.4,0.03410001]
[1751575823060,1.8645944,2600.5,2600.4,0.03410001]
[1751575823268,5.71000874,2600.5,2600.4,0.03410001]
[1751575823472,1.8645944,2600.5,2600.4,0.03410001]
[1751575823668,5.71000874,2600.5,2600.4,0.03410001]
[1751575826667,1.0671944,2600.5,2600.4,0.03410001]
[1751575826865,0.202,2600.5,2600.4,10.51242427]
[1751575827442,0.01,2600.5,2600.4,10.51242427]
[1751575827643,0.01,2600.5,2600.4,21.28732427]
[1751575827846,0.01,2600.5,2600.4,23.13182998]
[1751575828665,0.01,2600.5,2600.4,0.80900001]
[1751575828875,0.01,2600.5,2600.4,4.65456223]
[1751575831268,0.01,2600.5,2600.4,4.88501785]
[1751575834862,0.01,2600.5,2600.4,4.84656223]
[1751575835382,0.01,2600.5,2600.4,0.03410001]
[1751575837084,0.47462456,2600.5,2600.4,0.03410001]
[1751575839474,0.202,2600.5,2600.4,0.03410001]
[1751575840485,0.202,2600.5,2600.4,3.87966223]
[1751575840772,0.01,2600.5,2600.4,3.87966223]
[1751575842901,0.01,2600.5,2600.4,12.2033856]
[1751575843196,0.01,2600.5,2600.4,12.35692998]
[1751575847997,0.01,2600.5,2600.4,13.18342998]
[1751575848198,0.01,2600.5,2600.4,23.18342998]
[1751575858439,0.01,2600.5,2600.4,27.95342997]
[1751575861555,0.01,2600.5,2600.4,28.50342997]
[1751575861726,1e-08,2600.5,2600.4,28.50342997]
[1751575865831,1e-08,2600.5,2600.4,36.26642997]
[1751575870131,1e-08,2600.5,2600.4,38.15242997]
[1751575879347,0.01,2601.0,2600.9,3.84482294]
[1751575879533,0.01,2601.0,2600.9,30.40531379]
[1751575879738,0.01,2601.0,2600.9,30.48066557]
[1751575880335,0.01,2601.0,2600.9,30.19689069]
[1751575880751,0.01,2601.0,2600.9,22.43589069]
[1751575880948,0.01,2601.0,2600.9,30.19689069]
[1751575888463,0.01,2601.0,2600.9,30.49016951]
[1751575889903,0.01,2601.0,2600.9,30.19689069]
[1751575893209,0.01,2601.0,2600.9,22.43589069]
[1751575893374,0.01,2601.0,2600.9,21.91062294]
[1751575894692,0.01,2601.0,2600.9,10.3058]
[1751575894897,0.8091,2600.9,2600.5,0.192]
[1751575895202,0.8091,2600.7,2600.6,7.759]
[1751575895593,0.8091,2600.7,2600.5,0.192]
[1751575895799,0.8091,2600.7,2600.6,7.759]
[1751575896296,0.8091,2600.7,2600.6,11.60426647]
[1751575898411,0.8091,2600.7,2600.6,7.759]
[1751575898702,0.8091,2600.7,2600.6,7.76]
[1751575901009,0.8091,2600.7,2600.6,11.60526647]
[1751575904509,0.8091,2600.7,2600.6,7.76]
[1751575904716,0.8091,2600.7,2600.6,11.60526647]
[1751575905302,0.8091,2600.7,2600.6,7.76]
[1751575905817,0.8091,2600.7,2600.6,11.60526647]
[1751575907842,0.8091,2600.7,2600.6,7.76]
[1751575908122,0.8091,2600.7,2600.6,11.60526647]
[1751575911018,0.7765,2600.9,2600.8,3.84492817]
[1751575912827,0.7765,2600.9,2600.7,11.60405383]
[1751575914622,0.7765,2600.9,2600.7,7.759]
[1751575914923,0.7765,2600.9,2600.7,11.60410675]
[1751575915122,1.25981197,2600.9,2600.7,7.759]
[1751575915335,1.25981197,2600.9,2600.7,11.60411017]
[1751575916425,1.25981197,2600.9,2600.7,7.759]
[1751575916899,1.25981197,2600.9,2600.7,11.60410096]
[1751575917495,1.25981197,2600.9,2600.7,7.759]
[1751575918613,1.25981197,2600.9,2600.6,3.84518839]
[1751575918814,1.25981197,2600.9,2600.7,7.759]
[1751575919023,1.25981197,2600.9,2600.7,11.60411369]
[1751575921904,0.7765,2600.9,2600.7,11.60411369]
[1751575922136,0.7765,2600.9,2600.8,3.84497077]
[1751575922734,0.7765,2600.9,2600.7,7.759]
[1751575923609,0.7765,2600.9,2600.5,0.192]
[1751575923815,0.7765,2600.9,2600.5,10.0]
[1751575924015,4.83284478,2600.8,2600.4,11.60353228]
[1751575924331,0.48328448,2600.7,2600.4,11.60353228]
[1751575924535,0.48328448,2600.7,2600.5,3.84540715]
[1751575924928,0.48328448,2600.7,2600.6,3.84526647]
[1751575925132,0.9878,2600.8,2600.6,3.84526647]
[1751575925346,0.192,2600.8,2600.7,3.84511862]
[1751575925934,0.192,2600.8,2600.6,7.758]
[1751575925935,0.192,2600.8,2600.6,11.60319569]
[1751575926509,0.192,2600.8,2600.6,7.758]
[1751575927351,0.192,2600.8,2600.6,11.60314526]
[1751575929857,0.192,2600.8,2600.6,7.758]
[1751575930543,0.771,2600.7,2600.6,7.758]
[1751575931346,1.25180751,2600.7,2600.4,1e-08]
[1751575931663,1.25180751,2600.7,2600.4,11.60354457]
[1751575932161,0.771,2600.7,2600.4,11.60354457]
[1751575932364,0.771,2600.7,2600.5,3.84540692]
[1751575932528,0.771,2600.7,2600.4,11.60348732]
[1751575933762,0.771,2600.7,2600.4,1e-08]
[1751575933947,3.84535022,2600.6,2600.4,1e-08]
[1751575934160,4.88356773,2600.5,2600.4,1e-08]
[1751575934367,1.03815339,2600.5,2600.4,1e-08]
[1751575938249,1.03815339,2600.5,2600.4,3.84556223]
[1751575938446,0.192,2600.5,2600.4,1e-08]
[1751575946696,4.86951434,2600.5,2600.4,1e-08]
[1751575948705,4.86951434,2600.5,2600.4,0.03320001]
[1751575949706,4.86951434,2600.5,2600.4,1e-08]
[1751575950206,4.86951434,2600.5,2600.4,0.03320001]
[1751575950404,5.74099406,2600.5,2600.4,0.03320001]
[1751575954217,5.74099406,2600.5,2600.4,1e-08]
[1751575954627,0.8115,2600.0,2599.8,0.02]
[1751575954780,3.84630178,2599.9,2599.8,0.02]
[1751575954978,4.69670476,2599.9,2599.8,0.02]
[1751575955891,0.85040298,2599.9,2599.8,0.02]
[1751575956294,4.69670476,2599.9,2599.8,0.02]
[1751575957496,0.85040298,2599.9,2599.8,0.02]
[1751575958919,4.69670476,2599.9,2599.8,0.02]
[1751575963798,0.85040298,2599.9,2599.8,0.02]
[1751575965489,4.65773913,2600.0,2599.8,0.02]
[1751575965785,0.192,2600.1,2599.9,3.84626357]
[1751575965984,0.192,2600.1,2599.9,3.87946357]
[1751575966620,0.192,2600.1,2599.9,3.84626357]
[1751575967625,0.192,2600.1,2600.0,3.84615384]
[1751575968493,0.8037,2600.4,2600.1,3.8459736]
[1751575968695,0.192,2600.3,2599.8,1.0294]
[1751575968898,3.84520574,2600.7,2600.2,4.66745801]
[1751575969101,0.192,2600.5,2600.4,3.84556222]
[1751575970187,4.68831253,2600.9,2600.5,3.84539299]
[1751575970388,0.192,2600.7,2600.4,3.87867546]
[1751575972428,0.192,2600.7,2600.4,0.0332]
[1751575972602,0.192,2600.7,2600.5,3.84535329]
[1751575972935,0.192,2600.7,2600.4,3.84547608]
[1751575977148,0.192,2600.7,2600.5,3.84540935]
[1751575978154,0.192,2600.7,2600.4,3.84548878]
[1751575979058,4.03714339,2600.7,2600.3,3.84567433]
[1751575979443,4.60554583,2600.6,2600.2,10.192]
[1751575980325,4.03765112,2600.4,2600.0,0.192]
[1751575980529,4.03765112,2600.4,2600.0,4.03814566]
[1751575980712,3.83717803,2600.4,2600.0,4.03814566]
[1751575980911,3.83717803,2600.4,2600.0,0.192]
[1751575981152,0.192,2600.4,2600.0,0.192]
[1751575981449,0.192,2600.4,2600.1,3.84599857]
[1751575982036,0.192,2600.4,2600.2,3.87293112]
[1751575982235,0.192,2600.4,2600.2,0.0271]
[1751575983055,3.84571011,2600.3,2600.2,0.0271]
[1751575983262,4.03769307,2600.4,2600.2,0.0271]
[1751575983559,0.192,2600.4,2600.0,4.03814248]
[1751575983759,4.03757535,2600.4,2600.0,4.03814248]
[1751575984460,0.192,2600.4,2600.0,4.03814248]
[1751575985064,0.192,2600.4,2600.1,3.84598763]
[1751575986460,0.192,2600.4,2600.0,4.03806435]
[1751575986771,0.192,2600.4,2600.1,3.84598682]
[1751575986959,0.192,2600.4,2600.1,3.6477387]
[1751575987762,0.192,2600.4,2600.0,4.0380675]
[1751575987958,0.192,2600.4,2600.2,0.0271]
[1751575988665,0.192,2600.4,2600.1,3.8459854]
[1751575990261,0.192,2600.4,2600.0,4.03807293]
[1751575990469,0.192,2600.4,2600.1,3.84596096]
[1751575991640,0.192,2600.4,2600.2,0.0271]
[1751575992164,4.90186081,2600.4,2600.2,0.0271]
[1751575992762,4.90186081,2600.4,2600.0,4.03809601]
[1751575992969,4.90186081,2600.4,2600.0,0.192]
[1751575993267,4.90186081,2600.4,2600.0,4.03814939]
[1751575993571,1.05629831,2600.4,2600.0,4.03814939]
[1751575993869,0.192,2600.4,2600.0,4.03814939]
[1751575994053,4.03757811,2600.4,2600.0,4.03814939]
[1751575994236,4.03757811,2600.4,2600.0,4.03815128]
[1751575996240,0.192,2600.4,2600.0,4.03815128]
[1751575996573,0.192,2600.4,2600.2,3.84580065]
[1751575997773,0.192,2600.4,2600.3,3.84571011]
[1751575997968,0.192,2600.4,2600.3,0.0271]
[1751576003178,0.192,2600.4,2600.3,3.87281011]
[1751576003380,12.42229633,2601.0,2600.5,3.84533471]
[1751576003586,0.192,2600.7,2600.3,0.0271]
[1751576003886,0.192,2600.7,2600.3,3.8726877]
[1751576004054,0.192,2600.7,2600.3,3.8455877]
[1751576004254,0.192,2600.7,2600.4,0.067]
[1751576004455,4.03712759,2600.7,2600.4,0.067]
[1751576004654,5.77465853,2600.7,2600.4,0.067]
[1751576008683,6.6199501,2600.7,2600.4,0.067]
[1751576008888,3.84527838,2600.6,2600.4,0.067]
[1751576009267,3.84541434,2600.5,2600.4,0.067]
[1751576009703,0.84518416,2600.6,2600.4,0.067]
[1751576009874,0.192,2600.5,2600.4,0.067]
[1751576017412,0.192,2600.5,2600.4,3.91256222]
[1751576019215,8.5449,2600.9,2600.5,3.84536224]
[1751576019517,0.192,2600.7,2600.5,3.84536224]
[1751576019808,0.192,2600.7,2600.6,0.067]
[1751576029328,0.192,2600.7,2600.6,3.91226647]
[1751576029922,0.192,2600.7,2600.6,0.067]
[1751576031592,4.03711862,2600.7,2600.6,0.067]
[1751576031793,4.90440816,2600.7,2600.6,0.067]
[1751576032548,1.05928954,2600.7,2600.6,0.067]
[1751576033628,4.90440816,2600.7,2600.6,0.067]
[1751576034133,1.05928954,2600.7,2600.6,0.067]
[1751576036632,4.90440816,2600.7,2600.6,0.067]
[1751576039137,1.05928954,2600.7,2600.6,0.067]
[1751576039734,4.90440816,2600.7,2600.6,0.067]
[1751576040633,1.05928954,2600.7,2600.6,0.067]